fUSD/lending_fUSD_20251105
["ID","MTS","AMOUNT","RATE_DAILY","PERIOD"]
[393208066,1762320631848,-5114.5,0.00015,2]
[393208067,1762320631907,-1315.64532491,0.00015,2]
[393208068,1762320631919,-580.36061433,0.00015,2]
[393208069,1762320631932,-643.84349095,0.00015,2]
[393208070,1762320631943,-1256.25499,0.00015,2]
[393208071,1762320631955,-1317.37814711,0.00015,2]
[393208072,1762320631967,-473.32,0.00015,2]
[393208074,1762320637697,-1087.82460634,0.00015,2]
[393208075,1762320637715,-19942.25021689,0.00015,2]
[393208076,1762320637728,-16700.44716003,0.00015,2]
[393208077,1762320637739,-30540.98348069,0.00015,2]
[393208078,1762320637765,-1316.00390753,0.00015,2]
[393208079,1762320637824,-406015.408977,0.00015,2]
[393208080,1762320637836,-2365.75601512,0.00015,2]
[393208081,1762320637845,-255.0,0.00016124,2]
[393208082,1762320637855,-5000.00292773,0.000162,5]
[393208083,1762320637865,-420.0,0.00016416,2]
[393208084,1762320637874,-500.0,0.00016438,2]
[393208085,1762320637883,-500.0,0.00016438,2]
[393208087,1762320637892,-500.0,0.00016438,2]
[393208089,1762320637901,-610.06839728,0.00016438,2]
[393208091,1762320637911,-500.0,0.00016438,2]
[393208093,1762320637920,-500.0,0.00016438,2]
[393208095,1762320637930,-500.0,0.00016438,2]
[393208097,1762320637939,-163.3,0.0001644,2]
[393208098,1762320637949,-163.3,0.0001644,2]
[393208099,1762320637959,-1680.0,0.00016499,2]
[393208100,1762320637967,-300.0,0.000165,2]
[393208101,1762320637977,-2500.0,0.000165,2]
[393208102,1762320637986,-195.0,0.000165,2]
[393208103,1762320637995,-302.60422307,0.000165,2]
[393208104,1762320638005,-250.0,0.000165,2]
[393208105,1762320638015,-433.0,0.00017339,2]
[393208106,1762320638024,-209.34282057,0.00017487,2]
[393208107,1762320638034,-6691.32059136,0.00017487,2]
[393208108,1762320638043,-390.0,0.00017966,2]
[393208109,1762320638052,-2351.0,0.00018149,2]
[393208110,1762320638061,-700.0,0.00018629,2]
[393208111,1762320638070,-999.0,0.00019113,3]
[393208112,1762320638079,-508.80393106,0.00019787,2]
[393208113,1762320638089,-500.0,0.00019787,2]
[393208114,1762320638098,-300.0,0.000199,7]
[393208115,1762320638107,-1852.42,0.00019917,2]
[393208116,1762320638117,-2564.0,0.00019964,2]
[393208117,1762320638126,-500.0,0.00019973,2]
[393208118,1762320638135,-500.0,0.00019973,2]
[393208119,1762320638145,-500.0,0.00019973,2]
[393208120,1762320638155,-500.0,0.00019973,2]
[393208121,1762320638164,-500.0,0.00019973,2]
[393208122,1762320638174,-608.63540489,0.00019973,2]
[393208123,1762320638184,-1200.0,0.00019999,2]
[393208124,1762320638193,-22965.65615317,0.0002,2]
[393208125,1762320638202,-4655.60579236,0.0002,2]
[393208126,1762320638213,-126619.51423901,0.0002,5]
[393208127,1762320638222,-8300.0,0.0002,4]
[393208128,1762320638231,-3950.0,0.0002,2]
[393208129,1762320638242,-455.30778764,0.0002,20]
[393208130,1762320638253,-2036.80447549,0.0002,14]
[393208131,1762320638262,-1435.05785341,0.0002,2]
[393208132,1762320638272,-599.99829327,0.0002,2]
[393208133,1762320638281,-209.34282057,0.00020074,2]
[393208134,1762320638291,-6691.32059136,0.00020074,2]
[393208135,1762320638300,-1000.0,0.00020521,2]
[393208136,1762320638310,-295.47901701,0.00020521,2]
[393208137,1762320638319,-1000.0,0.00020521,2]
[393208138,1762320638328,-1000.0,0.00020521,2]
[393208139,1762320638337,-320.66927389,0.000207,2]
[393208140,1762320638347,-12163.68261623,0.000209,30]
[393208141,1762320638356,-1500.0,0.00021068,2]
[393208142,1762320638366,-1500.0,0.00021068,2]
[393208143,1762320638375,-1500.0,0.00021068,2]
[393208144,1762320638384,-163.3,0.00021606,2]
[393208145,1762320638394,-1515.06774849,0.00021616,2]
[393208146,1762320638403,-2000.0,0.00021616,2]
[393208147,1762320638412,-1061.76628903,0.00021616,2]
[393208148,1762320638421,-192.22,0.00021708,2]
[393208149,1762320638431,-500.0,0.00022115,2]
[393208150,1762320638440,-2000.0,0.00022164,2]
[393208151,1762320638450,-193.48,0.00022661,2]
[393208152,1762320638460,-209.34282057,0.00022661,2]
[393208153,1762320638470,-6691.32059136,0.00022661,2]
[393208154,1762320638479,-160.0,0.00022661,2]
[393208155,1762320638489,-500.0,0.00022701,2]
[393208156,1762320638499,-19201.75201872,0.000229,2]
[393208157,1762320638509,-628.19271841,0.00023,7]
[393208158,1762320638518,-435.50479199,0.00023,2]
[393208159,1762320638528,-997.64492603,0.00023,2]
[393208160,1762320638538,-554.9128886,0.000231,2]
[393208161,1762320638548,-2560.15769233,0.000231,2]
[393208162,1762320638557,-51655.6782552,0.000232,2]
[393208163,1762320638567,-11562.81343481,0.00023333,7]
[393208164,1762320638577,-500.0,0.000234,2]
[393208165,1762320638586,-204.28733051,0.000234,2]
[393208166,1762320638596,-502.06961086,0.000234,2]
[393208167,1762320638607,-501.31532823,0.000234,2]
[393208168,1762320638617,-500.64822633,0.000234,2]
[393208169,1762320638627,-505.63349764,0.000234,2]
[393208170,1762320638639,-500.46661689,0.000234,2]
[393208171,1762320638649,-476.03838915,0.000234,2]
[393208172,1762320638659,-200.1487595,0.000234,2]
[393208173,1762320638668,-500.0,0.000234,2]
[393208174,1762320638679,-200.0,0.000235,2]
[393208175,1762320638688,-500.39073057,0.000237,2]
[393208176,1762320638697,-510.55136191,0.000237,2]
[393208177,1762320638709,-500.0,0.000237,2]
[393208178,1762320638719,-500.0,0.000237,2]
[393208179,1762320638728,-500.0,0.000237,2]
[393208180,1762320638738,-205.86369281,0.000237,2]
[393208181,1762320638748,-500.0,0.000237,2]
[393208182,1762320638758,-500.0,0.000237,2]
[393208183,1762320638767,-500.79767075,0.000237,2]
[393208184,1762320638777,-500.0,0.000237,2]
[393208185,1762320638786,-500.0,0.000237,2]
[393208186,1762320638796,-1032.62303613,0.00023948,2]
[393208187,1762320638806,-1010.61467738,0.00024,2]
[393208188,1762320638816,-773.15965514,0.00024,2]
[393208189,1762320638825,-3600.0,0.00024,2]
[393208190,1762320638835,-16047.19172971,0.00024,2]
[393208191,1762320638847,-500.31544654,0.00024133,2]
[393208192,1762320638857,-5723.16,0.00024133,2]
[393208193,1762320638867,-9999.99,0.00024133,2]
[393208194,1762320638877,-299.99,0.00024133,7]
[393208195,1762320638887,-999.99,0.00024133,2]
[393208196,1762320638896,-9999.99,0.00024133,2]
[393208197,1762320638906,-9999.99,0.00024133,2]
[393208198,1762320638915,-1091.45,0.00024133,2]
[393208199,1762320638924,-150.99,0.00024133,2]
[393208200,1762320638934,-402.57,0.00024133,2]
[393208201,1762320638943,-150.99,0.00024133,2]
[393208202,1762320638953,-9999.99,0.00024133,2]
[393208203,1762320638963,-500.0,0.00024173,2]
[393208204,1762320638972,-500.0,0.00024173,2]
[393208205,1762320638982,-500.0,0.00024173,2]
[393208206,1762320638992,-500.0,0.00024173,2]
[393208207,1762320639002,-417.5457055,0.0002421,2]
[393208208,1762320639011,-3658.78635368,0.0002421,2]
[393208209,1762320639021,-1000.0,0.00024248,2]
[393208210,1762320639031,-1000.0,0.00024248,2]
[393208211,1762320639041,-1000.0,0.00024248,2]
[393208212,1762320639051,-1000.0,0.00024248,2]
[393208213,1762320639061,-1000.0,0.00024248,2]
[393208214,1762320639071,-1000.0,0.00024248,2]
[393208215,1762320639081,-1000.0,0.00024248,2]
[393208216,1762320639090,-500.0,0.000243,2]
[393208217,1762320639100,-591.3525063,0.0002465,2]
[393208218,1762320639110,-163.3,0.0002479,2]
[393208219,1762320639120,-163.3,0.0002479,2]
[393208220,1762320639129,-150.4,0.0002479,2]
[393208221,1762320639139,-150.4,0.0002479,2]
[393208222,1762320639149,-150.4,0.0002479,2]
[393208223,1762320639158,-150.4,0.0002479,2]
[393208224,1762320639168,-150.4,0.0002479,2]
[393208225,1762320639178,-150.4,0.0002479,2]
[393208226,1762320639187,-1240.57352989,0.0002479,2]
[393208227,1762320639199,-1500.0,0.00024796,2]
[393208228,1762320639209,-1500.0,0.00024796,2]
[393208229,1762320639219,-1500.0,0.00024796,2]
[393208230,1762320639230,-500.0,0.00024796,2]
[393208231,1762320639239,-1500.0,0.00024796,2]
[393208232,1762320639249,-1369.18541014,0.00024796,2]
[393208233,1762320639259,-151.0,0.00024797,7]
[393208234,1762320639269,-629.58,0.00024799,2]
[393208235,1762320639278,-500.0,0.00024799,2]
[393208236,1762320639287,-215.79580708,0.00024799,2]
[393208237,1762320639297,-500.0,0.00024799,2]
[393208238,1762320639307,-328.07170066,0.00024799,2]
[393208239,1762320639316,-303.31346287,0.00024799,2]
[393208240,1762320639326,-500.0,0.00024799,2]
[393208241,1762320639336,-477.56934701,0.00024799,2]
[393208242,1762320639346,-184.2985429,0.00024799,2]
[393208243,1762320639356,-329910.135411,0.000248,3]
[393208244,1762320639366,-254.82241161,0.00024848,2]
[393208245,1762320639376,-150.4,0.0002489,2]
[393208246,1762320639385,-150.4,0.0002489,2]
[393208247,1762320639395,-150.4,0.0002489,2]
[393208248,1762320639404,-150.4,0.0002489,2]
[393208249,1762320639414,-182818.225834,0.000249,3]
[393208250,1762320639423,-600.0,0.000249,9]
[393208251,1762320639433,-151.0,0.00024917,2]
[393208252,1762320639442,-151.0,0.00024917,2]
[393208253,1762320639451,-151.0,0.00024917,2]
[393208254,1762320639461,-151.0,0.00024917,2]
[393208257,1762320639470,-151.0,0.00024917,2]
[393208259,1762320639480,-151.0,0.00024917,2]
[393208260,1762320639489,-151.0,0.00024917,2]
[393208261,1762320639499,-151.0,0.00024917,2]
[393208262,1762320639508,-151.0,0.00024917,2]
[393208263,1762320639517,-151.0,0.00024917,2]
[393208264,1762320639527,-151.0,0.00024917,2]
[393208265,1762320639536,-151.0,0.00024917,2]
[393208266,1762320639545,-151.0,0.00024917,2]
[393208267,1762320639555,-151.0,0.00024917,2]
[393208268,1762320639564,-151.0,0.00024917,2]
[393208269,1762320639573,-151.0,0.00024917,2]
[393208270,1762320639582,-151.0,0.00024917,2]
[393208272,1762320639592,-151.0,0.00024917,2]
[393208273,1762320639602,-151.0,0.00024917,2]
[393208274,1762320639611,-151.0,0.00024917,2]
[393208275,1762320639621,-500.0,0.00024919,2]
[393208276,1762320639630,-500.0,0.00024932,2]
[393208277,1762320639644,-500.0,0.00024932,2]
[393208278,1762320639654,-601.46356491,0.00025,2]
[393208279,1762320639663,-1729.03653482,0.00025,2]
[393208280,1762320639673,-735.7447283,0.00025,2]
[393208281,1762320639685,-165.24457208,0.00025,2]
[393208282,1762320639696,-209.34282057,0.00025248,2]
[393208283,1762320639707,-6691.32059136,0.00025248,2]
[393208284,1762320639718,-500.0,0.00025344,2]
[393208285,1762320639728,-500.0,0.00025344,2]
[393208286,1762320639737,-500.0,0.00025344,2]
[393208287,1762320639747,-500.0,0.00025344,2]
[393208288,1762320639756,-629.58,0.00025765,2]
[393208289,1762320639765,-629.58,0.00025765,2]
[393208290,1762320639774,-629.58,0.00025775,2]
[393208291,1762320639783,-150.4,0.00025859,2]
[393208292,1762320639792,-151.0,0.00025866,7]
[393208293,1762320639801,-17363.6913374,0.00025869,3]
[393208294,1762320639810,-15234.8521528,0.00025869,3]
[393208295,1762320639819,-20087.29625479,0.00025879,2]
[393208296,1762320639828,-900.0,0.000259,9]
[393208297,1762320639836,-593.35020443,0.0002599,2]
[393208298,1762320639845,-163.3,0.0002599,2]
[393208299,1762320639854,-4469.38720675,0.00026,2]
[393208300,1762320639863,-4138.65,0.00026,2]
[393208301,1762320639872,-213.82965862,0.00026,2]
[393208302,1762320639881,-160.95307683,0.00026,2]
[393208303,1762320639890,-150.4,0.0002638,2]
[393208304,1762320639898,-15234.8521528,0.0002639,3]
[393208305,1762320639907,-27149.90272033,0.000264,2]
[393208306,1762320639916,-1000.0,0.0002664,2]
[393208307,1762320639925,-173.33139008,0.000269,2]
[393208308,1762320639934,-250.0,0.00027,2]
[393208309,1762320639943,-1021.02311256,0.00027,2]
[393208310,1762320639952,-162.06335724,0.00027,2]
[393208311,1762320639962,-530.0,0.00027,2]
[393208312,1762320639971,-150.4,0.0002737,2]
[393208313,1762320639980,-17363.6913374,0.0002738,3]
[393208314,1762320639989,-629.58,0.00027387,2]
[393208315,1762320639998,-442.57857532,0.0002739,2]
[393208316,1762320640008,-2318.0,0.00027397,4]
[393208317,1762320640016,-152.39,0.000274,7]
[393208318,1762320640025,-501.72880029,0.00027723,2]
[393208319,1762320640035,-209.34282057,0.00027835,2]
[393208320,1762320640044,-6691.32059136,0.00027835,2]
[393208321,1762320640053,-6314.67,0.00027925,2]
[393208322,1762320640062,-226.62506382,0.00028068,4]
[393208323,1762320640071,-173.33139007,0.00029721,2]
[393208324,1762320640080,-15234.8521528,0.00029805,3]
[393208325,1762320640090,-9268.25,0.00029815,2]
[393208326,1762320640099,-150.4,0.00030412,2]
[393208327,1762320640109,-209.34282057,0.00030422,15]
[393208328,1762320640118,-6691.32059136,0.00030422,2]
[393208329,1762320640127,-200.0,0.00030539,2]
[393208330,1762320640137,-1000.0,0.00030701,2]
[393208331,1762320640146,-1913.47,0.00030912,2]
[393208332,1762320640155,-4087.32,0.00030966,2]
[393208333,1762320640165,-150.0,0.00031223,2]
[393208334,1762320640174,-1074.186,0.00031292,2]
[393208335,1762320640184,-234.2882,0.00031292,2]
[393208336,1762320640193,-279.6991,0.00031292,2]
[393208337,1762320640203,-339.894,0.00031392,29]
[393208338,1762320640213,-5791.92,0.00031392,29]
[393208339,1762320640222,-2751.0,0.00031488,120]
[393208340,1762320640231,-152.39,0.000315,7]
[393208341,1762320640240,-200.0,0.00031513,2]
[393208342,1762320640250,-17363.6913374,0.00031842,3]
[393208343,1762320640260,-1000.0,0.00031852,2]
[393208344,1762320640270,-309.56818,0.00032054,6]
[393208345,1762320640279,-1001.721353,0.00032054,6]
[393208346,1762320640288,-232.095223,0.00032054,6]
[393208347,1762320640297,-151.174963,0.00032054,6]
[393208348,1762320640307,-448.65803,0.00032054,6]
[393208349,1762320640316,-309.56818,0.00032054,6]
[393208350,1762320640325,-309.56818,0.00032301,6]
[393208351,1762320640335,-1001.721353,0.00032301,6]
[393208352,1762320640344,-232.095223,0.00032301,6]
[393208353,1762320640354,-151.174963,0.00032301,6]
[393208354,1762320640363,-448.65803,0.00032301,6]
[393208355,1762320640373,-309.56818,0.00032301,6]
[393208356,1762320640382,-877.98560828,0.00032334,2]
[393208357,1762320640391,-173.33139007,0.00032542,2]
[393208358,1762320640400,-192.22,0.00032563,2]
[393208359,1762320640410,-150.4,0.00032724,2]
[393208360,1762320640419,-877.98560828,0.00032734,2]
[393208361,1762320640428,-500.0,0.00032877,7]
[393208362,1762320640438,-500.0,0.00032877,7]
[393208363,1762320640447,-538.4603023,0.00032877,7]
[393208365,1762320640456,-500.0,0.00032877,7]
[393208366,1762320640466,-500.0,0.00032877,7]
[393208367,1762320640475,-500.0,0.00032877,7]
[393208368,1762320640484,-500.0,0.000329,5]
[393208369,1762320640493,-200.0,0.000329,5]
[393208370,1762320640502,-568.88126658,0.000329,5]
[393208371,1762320640511,-500.0,0.000329,5]
[393208372,1762320640520,-500.0,0.000329,5]
[393208373,1762320640530,-1000.0,0.00033003,2]
[393208374,1762320640539,-209.34282057,0.00033009,15]
[393208375,1762320640548,-6691.32059136,0.00033009,2]
[393208376,1762320640557,-221.11103969,0.00033012,2]
[393208377,1762320640566,-877.98560828,0.0003305,2]
[393208378,1762320640576,-877.98560828,0.0003322,2]
[393208379,1762320640585,-221.11103969,0.00033421,2]
[393208380,1762320640595,-500.0,0.00033448,5]
[393208381,1762320640604,-1000.0,0.00033448,5]
[393208382,1762320640613,-1000.0,0.00033448,5]
[393208383,1762320640622,-221.11103969,0.00033516,2]
[393208384,1762320640632,-877.98560828,0.00033519,2]
[393208385,1762320640646,-400.0,0.00033585,5]
[393208386,1762320640655,-221.11103969,0.00033754,2]
[393208387,1762320640664,-1000.0,0.00033754,2]
[393208388,1762320640674,-152.39,0.000338,14]
[393208389,1762320640685,-877.98560828,0.00033924,2]
[393208390,1762320640694,-568.213,0.00033972,2]
[393208391,1762320640703,-6656.0,0.00033972,2]
[393208392,1762320640716,-607.0,0.00033972,2]
[393208393,1762320640726,-629.58,0.00033982,120]
[393208394,1762320640735,-1500.0,0.00033996,5]
[393208395,1762320640744,-1500.0,0.00033996,5]
[393208396,1762320640753,-877.98560828,0.00034059,2]
[393208397,1762320640763,-1000.0,0.00034154,2]
[393208398,1762320640771,-221.11103969,0.00034213,2]
[393208399,1762320640780,-600.0,0.0003427,5]
[393208400,1762320640789,-1000.0,0.00034323,2]
[393208401,1762320640798,-221.11103969,0.00034442,2]
[393208402,1762320640807,-15234.8521528,0.00034482,3]
[393208403,1762320640818,-4067.1465,0.00034492,2]
[393208404,1762320640828,-2142.154,0.00034492,2]
[393208405,1762320640838,-877.98560828,0.00034493,2]
[393208406,1762320640848,-521.05467729,0.00034544,5]
[393208407,1762320640859,-150.4,0.00034582,2]
[393208408,1762320640869,-877.98560828,0.00034592,2]
[393208409,1762320640877,-9726.35,0.00034592,2]
[393208410,1762320640887,-1000.0,0.00034635,2]
[393208411,1762320640896,-221.11103969,0.00034647,2]
[393208412,1762320640907,-1000.0,0.00034762,2]
[393208413,1762320640919,-800.0,0.00034955,5]
[393208414,1762320640929,-221.11103969,0.00034968,2]
[393208415,1762320640939,-1383.577,0.00034972,2]
[393208416,1762320640950,-820.0,0.00034972,2]
[393208417,1762320640961,-1272.0,0.00034972,2]
[393208418,1762320640970,-812.0,0.00034972,2]
[393208419,1762320640979,-921.378,0.00034972,2]
[393208420,1762320640987,-1188.0,0.00034972,2]
[393208421,1762320640996,-877.98560828,0.00034979,2]
[393208422,1762320641005,-15234.8521528,0.0003499,3]
[393208423,1762320641016,-504.25926664,0.00035,5]
[393208424,1762320641026,-500.0,0.00035,5]
[393208425,1762320641036,-500.0,0.00035,5]
[393208426,1762320641045,-5687.0,0.00035,8]
[393208427,1762320641054,-221.11103969,0.00035127,2]
[393208428,1762320641063,-152.39,0.000352,14]
[393208429,1762320641072,-877.98560828,0.00035223,2]
[393208430,1762320641082,-4386.0,0.0003525,5]
[393208431,1762320641092,-293.43,0.00035254,14]
[393208432,1762320641101,-1000.0,0.00035306,2]
[393208433,1762320641110,-173.33139007,0.00035362,2]
[393208434,1762320641120,-221.11103969,0.00035427,2]
[393208435,1762320641129,-877.98560828,0.00035434,2]
[393208436,1762320641138,-221.85,0.00035487,2]
[393208437,1762320641148,-658.09,0.00035514,30]
[393208438,1762320641157,-150.4,0.00035538,2]
[393208439,1762320641167,-697.03833275,0.00035548,5]
[393208440,1762320641176,-1021.19557885,0.00035548,5]
[393208441,1762320641186,-209.34282057,0.00035596,15]
[393208442,1762320641195,-6691.32059136,0.00035596,2]
[393208443,1762320641204,-400.32715408,0.0003564,5]
[393208444,1762320641214,-877.98560828,0.00035744,2]
[393208445,1762320641223,-221.11103969,0.0003585,2]
[393208446,1762320641232,-150.0,0.00035867,2]
[393208447,1762320641241,-150.0,0.00035867,2]
[393208448,1762320641250,-877.98560828,0.00035936,2]
[393208449,1762320641260,-221.11103969,0.00035942,2]
[393208450,1762320641270,-1000.0,0.00035971,7]
[393208451,1762320641279,-200.0,0.00036004,2]
[393208452,1762320641288,-1500.0,0.00036096,7]
[393208453,1762320641297,-864.39,0.00036119,2]
[393208454,1762320641307,-281.74,0.00036134,2]
[393208455,1762320641315,-1000.0,0.00036164,120]
[393208456,1762320641324,-877.98560828,0.00036164,2]
[393208457,1762320641334,-500.0,0.00036247,2]
[393208458,1762320641343,-221.11103969,0.00036261,2]
[393208459,1762320641352,-589.34431333,0.00036267,7]
[393208460,1762320641361,-1200.0,0.0003637,7]
[393208461,1762320641370,-500.0,0.0003637,7]
[393208462,1762320641379,-161.13202482,0.00036384,30]
[393208463,1762320641389,-161.1320248,0.00036384,30]
[393208464,1762320641398,-161.1320248,0.00036384,30]
[393208465,1762320641407,-152.39,0.000364,14]
[393208466,1762320641415,-1144.49083678,0.00036438,120]
[393208467,1762320641424,-1000.0,0.00036496,7]
[393208468,1762320641433,-163.3,0.00036511,2]
[393208469,1762320641442,-161.1320248,0.00036521,30]
[393208470,1762320641451,-161.1320248,0.00036521,30]
[393208471,1762320641461,-221.11103969,0.00036575,2]
[393208472,1762320641470,-877.98560828,0.00036669,2]
[393208473,1762320641479,-161.1320248,0.00036685,30]
[393208474,1762320641488,-161.1320248,0.00036685,30]
[393208475,1762320641497,-877.98560828,0.00036769,2]
[393208476,1762320641506,-161.13202482,0.00036795,30]
[393208477,1762320641515,-161.1320248,0.00036822,30]
[393208478,1762320641524,-161.1320248,0.00036822,30]
[393208479,1762320641534,-150.0,0.00036879,2]
[393208480,1762320641544,-150.0,0.00036879,2]
[393208481,1762320641554,-150.0,0.00036879,2]
[393208482,1762320641563,-300.0,0.00036879,2]
[393208483,1762320641572,-150.0,0.00036879,2]
[393208484,1762320641581,-150.0,0.00036879,2]
[393208485,1762320641591,-1500.0,0.00036918,7]
[393208486,1762320641600,-629.58,0.0003694,120]
[393208487,1762320641610,-4323.0,0.00036955,120]
[393208488,1762320641766,-221.11103969,0.00036956,2]
[393208489,1762320641775,-161.1320248,0.00036959,30]
[393208490,1762320641785,-161.1320248,0.00036959,30]
[393208491,1762320641795,-629.58,0.0003696,120]
[393208492,1762320641804,-6154.001,0.00036972,2]
[393208493,1762320641813,-607.0,0.00036972,2]
[393208494,1762320641822,-500.0,0.00036973,5]
[393208495,1762320641831,-15234.8521528,0.0003698,4]
[393208496,1762320641840,-150.4,0.0003698,2]
[393208497,1762320641849,-150.4,0.0003698,2]
[393208498,1762320641858,-629.58,0.00036988,120]
[393208499,1762320641867,-629.58,0.00036989,120]
[393208500,1762320641875,-13227.42214846,0.0003699,30]
[393208501,1762320641884,-60939.4086114,0.0003699,4]
[393208502,1762320641894,-151.0,0.0003699,31]
[393208503,1762320641903,-151.0,0.0003699,31]
[393208504,1762320641912,-151.0,0.0003699,31]
[393208505,1762320641922,-341.01862,0.0003699,31]
[393208506,1762320641931,-341.01862,0.0003699,31]
[393208507,1762320641940,-151.0,0.0003699,31]
[393208508,1762320641949,-341.01862,0.0003699,31]
[393208509,1762320641959,-151.0,0.0003699,31]
[393208510,1762320641968,-341.01862,0.0003699,31]
[393208511,1762320641977,-151.0,0.0003699,31]
[393208512,1762320641986,-162.595946,0.0003699,31]
[393208513,1762320641995,-151.0,0.0003699,31]
[393208514,1762320642005,-151.480472,0.0003699,31]
[393208515,1762320642015,-151.0,0.0003699,31]
[393208516,1762320642026,-157.454059,0.0003699,31]
[393208517,1762320642036,-151.480472,0.0003699,31]
[393208518,1762320642045,-151.480472,0.0003699,31]
[393208519,1762320642055,-151.0,0.0003699,31]
[393208520,1762320642064,-157.309178,0.0003699,31]
[393208521,1762320642074,-151.480472,0.0003699,31]
[393208522,1762320642083,-154.783012,0.0003699,31]
[393208523,1762320642092,-151.0,0.0003699,31]
[393208524,1762320642103,-151.0,0.0003699,31]
[393208525,1762320642114,-151.0,0.0003699,31]
[393208526,1762320642125,-151.0,0.0003699,31]
[393208527,1762320642134,-151.0,0.0003699,31]
[393208528,1762320642143,-151.0,0.0003699,31]
[393208529,1762320642153,-151.0,0.0003699,31]
[393208530,1762320642162,-162.481363,0.0003699,31]
[393208531,1762320642172,-194.388038,0.0003699,31]
[393208532,1762320642181,-153.340919,0.0003699,31]
[393208533,1762320642191,-150.4,0.0003699,2]
[393208534,1762320642201,-150.4,0.0003699,2]
[393208535,1762320642210,-151.0,0.0003699,31]
[393208536,1762320642220,-151.0,0.0003699,31]
[393208537,1762320642230,-151.0,0.0003699,15]
[393208538,1762320642239,-151.0,0.0003699,31]
[393208539,1762320642248,-151.0,0.0003699,31]
[393208540,1762320642258,-151.0,0.0003699,31]
[393208541,1762320642267,-151.0,0.0003699,30]
[393208542,1762320642276,-151.0,0.0003699,31]
[393208543,1762320642286,-151.0,0.0003699,31]
[393208544,1762320642295,-151.0,0.0003699,30]
[393208545,1762320642305,-151.0,0.0003699,31]
[393208546,1762320642315,-500.0,0.00036998,2]
[393208547,1762320642324,-500.0,0.00036998,120]
[393208548,1762320642334,-100000.0,0.00037,40]
[393208549,1762320642344,-4964.40300787,0.00037,5]
[393208550,1762320642355,-221.11103969,0.00037,2]
[393208551,1762320642365,-2000.0,0.00037,2]
[393208552,1762320642374,-2000.0,0.00037,2]
[393208553,1762320642385,-2000.0,0.00037,2]
[393208554,1762320642394,-2000.0,0.00037,2]
[393208555,1762320642405,-1478.0585,0.00037,2]
[393208556,1762320642414,-500.0,0.00037,5]
[393208557,1762320642423,-500.0,0.00037,5]
[393208558,1762320642432,-500.0,0.00037,5]
[393208559,1762320642441,-500.0,0.00037,5]
[393208560,1762320642451,-500.0,0.00037,5]
[393208561,1762320642461,-500.0,0.00037,5]
[393208562,1762320642471,-400.0,0.000371,13]
[393208563,1762320642481,-161.1320248,0.00037123,30]
[393208564,1762320642490,-161.1320248,0.00037123,30]
[393208565,1762320642499,-161.13202482,0.00037178,30]
[393208566,1762320642509,-150.0,0.00037178,2]
[393208567,1762320642518,-150.0,0.00037178,2]
[393208568,1762320642530,-1200.0,0.00037192,7]
[393208569,1762320642539,-500.0,0.00037192,7]
[393208571,1762320642549,-150.4,0.00037199,2]
[393208572,1762320642558,-900.0,0.000372,13]
[393208573,1762320642567,-1000.0,0.00037204,2]
[393208575,1762320642577,-2500.0,0.00037204,2]
[393208577,1762320642586,-877.98560828,0.00037209,2]
[393208578,1762320642595,-161.1320248,0.0003726,30]
[393208579,1762320642604,-161.1320248,0.0003726,30]
[393208580,1762320642614,-2450.78003408,0.00037283,9]